[Event "Titled Tuesday Blitz July 11 Late 2023"]
[White "Karttunen, Mika"]
[Black "EsmeraldasAnderson03"]
[WhiteFideId "502081"]
[WhiteElo "2554"]
[BlackElo "2391"]
[Result "1-0"]
[Round "4"]
[TimeControl "180+2"]
[Date "2023.07.11"]
[WhiteClock "0:00:15"]
[BlackClock "0:00:00"]
[Board "115"]

1. e4 {[%clk 0:03:00]}  c5 {[%clk 0:02:39]} 2. Nf3 {[%clk 0:03:00]}  d6 {[%clk 0:02:36]} 3. d4 {[%clk 0:03:00]}  cxd4 {[%clk 0:02:36]} 4. Nxd4 {[%clk 0:03:00]}  Nf6 {[%clk 0:02:36]} 5. Nc3 {[%clk 0:03:01]}  a6 {[%clk 0:02:35]} 6. f3 {[%clk 0:03:00]}  e5 {[%clk 0:02:34]} 7. Nb3 {[%clk 0:03:00]}  Be6 {[%clk 0:02:32]} 8. Be3 {[%clk 0:03:00]}  Be7 {[%clk 0:02:32]} 9. Qd2 {[%clk 0:03:00]}  O-O {[%clk 0:02:32]} 10. O-O-O {[%clk 0:03:00]}  b5 {[%clk 0:02:33]} 11. g4 {[%clk 0:03:00]}  b4 {[%clk 0:02:21]} 12. Na4 {[%clk 0:02:33]}  Nbd7 {[%clk 0:02:21]} 13. h4 {[%clk 0:01:38]}  a5 {[%clk 0:02:09]} 14. h5 {[%clk 0:01:37]}  Nc5 {[%clk 0:01:06]} 15. Nbxc5 {[%clk 0:01:29]}  dxc5 {[%clk 0:01:06]} 16. Qxd8 {[%clk 0:01:29]}  Rfxd8 {[%clk 0:01:06]} 17. Rxd8+ {[%clk 0:01:27]}  Rxd8 {[%clk 0:01:05]} 18. Bxc5 {[%clk 0:01:13]}  Bxc5 {[%clk 0:01:04]} 19. Nxc5 {[%clk 0:01:13]}  Bxa2 {[%clk 0:01:01]} 20. Nb7 {[%clk 0:00:49]}  Ra8 {[%clk 0:00:58]} 21. b3 {[%clk 0:00:48]}  a4 {[%clk 0:00:58]} 22. Kb2 {[%clk 0:00:48]}  axb3 {[%clk 0:00:53]} 23. cxb3 {[%clk 0:00:48]}  Nd7 {[%clk 0:00:43]} 24. Bb5 {[%clk 0:00:42]}  Nb6 {[%clk 0:00:10]} 25. Rd1 {[%clk 0:00:36]}  Kf8 {[%clk 0:00:02]} 26. Rd8+ {[%clk 0:00:34]}  Rxd8 {[%clk 0:00:01]} 27. Nxd8 {[%clk 0:00:35]}  Bxb3 {[%clk 0:00:02]} 28. Kxb3 {[%clk 0:00:34]}  Ke7 {[%clk 0:00:03]} 29. Nc6+ {[%clk 0:00:33]}  Kd6 {[%clk 0:00:04]} 30. Nxb4 {[%clk 0:00:33]}  Kc5 {[%clk 0:00:04]} 31. Be8 {[%clk 0:00:30]}  Kd4 {[%clk 0:00:02]} 32. Nc2+ {[%clk 0:00:24]}  Kd3 {[%clk 0:00:01]} 33. Bb5+ {[%clk 0:00:16]}  Kd2 {[%clk 0:00:00]} 34. Kb2 {[%clk 0:00:15]} 1-0


[Site "https://www.chess.com"]

[Event "Titled Tuesday Blitz July 11 Late 2023"]
[White "Castella Garcia, Fausto"]
[Black "ArtemDyachuk"]
[WhiteFideId "3501922"]
[WhiteElo "2388"]
[BlackElo "2553"]
[Result "1-0"]
[Round "4"]
[TimeControl "180+2"]
[Date "2023.07.11"]
[WhiteClock "0:00:29"]
[BlackClock "0:00:00"]
[Board "116"]

1. e4 {[%clk 0:02:46]}  c5 {[%clk 0:02:55]} 2. Nf3 {[%clk 0:02:47]}  Nc6 {[%clk 0:02:51]} 3. Bb5 {[%clk 0:02:46]}  g6 {[%clk 0:02:41]} 4. c3 {[%clk 0:02:44]}  Nf6 {[%clk 0:02:34]} 5. e5 {[%clk 0:02:43]}  Nd5 {[%clk 0:02:31]} 6. d4 {[%clk 0:02:43]}  cxd4 {[%clk 0:02:28]} 7. Qb3 {[%clk 0:02:42]}  Nc7 {[%clk 0:02:25]} 8. Bc4 {[%clk 0:02:42]}  e6 {[%clk 0:02:21]} 9. Bg5 {[%clk 0:02:38]}  Be7 {[%clk 0:02:16]} 10. Bxe7 {[%clk 0:02:38]}  Qxe7 {[%clk 0:02:16]} 11. cxd4 {[%clk 0:02:35]}  Na5 {[%clk 0:02:15]} 12. Qc3 {[%clk 0:02:35]}  Nxc4 {[%clk 0:02:06]} 13. Qxc4 {[%clk 0:02:36]}  Nd5 {[%clk 0:02:03]} 14. Nc3 {[%clk 0:02:26]}  Nxc3 {[%clk 0:01:59]} 15. bxc3 {[%clk 0:02:23]}  O-O {[%clk 0:01:55]} 16. h4 {[%clk 0:02:22]}  b6 {[%clk 0:01:53]} 17. h5 {[%clk 0:02:14]}  Bb7 {[%clk 0:01:50]} 18. Qe2 {[%clk 0:02:02]}  Rac8 {[%clk 0:01:48]} 19. Qe3 {[%clk 0:01:56]}  Bxf3 {[%clk 0:01:42]} 20. gxf3 {[%clk 0:01:42]}  Qa3 {[%clk 0:01:41]} 21. Rc1 {[%clk 0:01:42]}  Qa4 {[%clk 0:01:39]} 22. Qh6 {[%clk 0:01:37]}  Qa3 {[%clk 0:01:06]} 23. hxg6 {[%clk 0:01:32]}  Qxc1+ {[%clk 0:01:04]} 24. Qxc1 {[%clk 0:01:32]}  fxg6 {[%clk 0:01:02]} 25. Qe3 {[%clk 0:01:24]}  Rc4 {[%clk 0:00:58]} 26. Qh6 {[%clk 0:01:15]}  Rf7 {[%clk 0:00:57]} 27. Kd2 {[%clk 0:01:16]}  Ra4 {[%clk 0:00:53]} 28. Qh4 {[%clk 0:01:07]}  Rxa2+ {[%clk 0:00:50]} 29. Kd3 {[%clk 0:01:08]}  Rxf3+ {[%clk 0:00:46]} 30. Ke4 {[%clk 0:00:58]}  Rf7 {[%clk 0:00:46]} 31. Rh2 {[%clk 0:00:49]}  Rb2 {[%clk 0:00:39]} 32. f4 {[%clk 0:00:49]}  Rxh2 {[%clk 0:00:34]} 33. Qxh2 {[%clk 0:00:48]}  Rf5 {[%clk 0:00:32]} 34. c4 {[%clk 0:00:45]}  Kg7 {[%clk 0:00:29]} 35. d5 {[%clk 0:00:45]}  h5 {[%clk 0:00:29]} 36. Qd2 {[%clk 0:00:38]}  exd5+ {[%clk 0:00:11]} 37. cxd5 {[%clk 0:00:36]}  a5 {[%clk 0:00:10]} 38. e6 {[%clk 0:00:35]}  Kf8 {[%clk 0:00:05]} 39. exd7 {[%clk 0:00:31]}  Ke7 {[%clk 0:00:05]} 40. Qg2 {[%clk 0:00:29]}  Rf6 {[%clk 0:00:00]} 41. Qg5 {[%clk 0:00:29]} 1-0


[Site "https://www.chess.com"]

[Event "Titled Tuesday Blitz July 11 Late 2023"]
[White "micke12a"]
[Black "Kochiev, Ivan"]
[BlackFideId "2917890"]
[WhiteElo "2387"]
[BlackElo "2545"]
[Result "0-1"]
[Round "4"]
[TimeControl "180+2"]
[Date "2023.07.11"]
[WhiteClock "0:01:17"]
[BlackClock "0:01:14"]
[Board "117"]

1. e4 {[%clk 0:02:57]}  e5 {[%clk 0:02:59]} 2. Nf3 {[%clk 0:02:56]}  Nf6 {[%clk 0:02:56]} 3. Nxe5 {[%clk 0:02:56]}  Nc6 {[%clk 0:02:55]} 4. Nxc6 {[%clk 0:02:55]}  dxc6 {[%clk 0:02:56]} 5. d3 {[%clk 0:02:55]}  Bc5 {[%clk 0:02:56]} 6. Be2 {[%clk 0:02:52]}  h5 {[%clk 0:02:56]} 7. h3 {[%clk 0:02:51]}  Qd4 {[%clk 0:02:32]} 8. O-O {[%clk 0:02:41]}  Qd6 {[%clk 0:02:32]} 9. Be3 {[%clk 0:02:31]}  Bxe3 {[%clk 0:02:22]} 10. fxe3 {[%clk 0:02:30]}  Bxh3 {[%clk 0:02:23]} 11. gxh3 {[%clk 0:02:27]}  Qg3+ {[%clk 0:02:22]} 12. Kh1 {[%clk 0:02:27]}  Qxh3+ {[%clk 0:02:22]} 13. Kg1 {[%clk 0:02:27]}  Rh6 {[%clk 0:01:59]} 14. Bf3 {[%clk 0:01:53]}  Ng4 {[%clk 0:01:15]} 15. Bxg4 {[%clk 0:01:20]}  Qg3+ {[%clk 0:01:13]} 16. Kh1 {[%clk 0:01:17]}  hxg4# {[%clk 0:01:14]} 0-1


[Site "https://www.chess.com"]

[Event "Titled Tuesday Blitz July 11 Late 2023"]
[White "Alahakoon, Isuru"]
[Black "ArchibaldCerveza29"]
[WhiteFideId "9900993"]
[WhiteElo "2357"]
[BlackElo "2513"]
[Result "0-1"]
[Round "4"]
[TimeControl "180+2"]
[Date "2023.07.11"]
[WhiteClock "0:00:00"]
[BlackClock "0:00:05"]
[Board "127"]

1. Nf3 {[%clk 0:02:57]}  f5 {[%clk 0:02:57]} 2. d3 {[%clk 0:02:55]}  Nf6 {[%clk 0:02:57]} 3. e4 {[%clk 0:02:56]}  d6 {[%clk 0:02:57]} 4. Nc3 {[%clk 0:02:55]}  Nc6 {[%clk 0:02:56]} 5. exf5 {[%clk 0:02:40]}  Bxf5 {[%clk 0:02:55]} 6. d4 {[%clk 0:02:40]}  e6 {[%clk 0:02:40]} 7. Nh4 {[%clk 0:02:36]}  Bg4 {[%clk 0:02:31]} 8. Be2 {[%clk 0:02:11]}  Bxe2 {[%clk 0:02:31]} 9. Nxe2 {[%clk 0:02:12]}  Be7 {[%clk 0:02:24]} 10. O-O {[%clk 0:02:11]}  O-O {[%clk 0:02:23]} 11. Nf4 {[%clk 0:02:10]}  Qd7 {[%clk 0:02:16]} 12. Nf3 {[%clk 0:02:09]}  Rae8 {[%clk 0:02:09]} 13. d5 {[%clk 0:02:05]}  exd5 {[%clk 0:02:04]} 14. Nxd5 {[%clk 0:02:06]}  Bd8 {[%clk 0:01:48]} 15. c3 {[%clk 0:02:01]}  Qf5 {[%clk 0:01:46]} 16. Ne3 {[%clk 0:01:53]}  Qh5 {[%clk 0:01:46]} 17. Nd4 {[%clk 0:01:51]}  Qg6 {[%clk 0:01:42]} 18. Qb3+ {[%clk 0:01:42]}  Kh8 {[%clk 0:01:27]} 19. Ne6 {[%clk 0:01:42]}  Rg8 {[%clk 0:01:15]} 20. Qxb7 {[%clk 0:01:16]}  Ne5 {[%clk 0:00:48]} 21. f4 {[%clk 0:01:08]}  Neg4 {[%clk 0:00:44]} 22. f5 {[%clk 0:00:58]}  Qh5 {[%clk 0:00:44]} 23. Nxg4 {[%clk 0:00:56]}  Nxg4 {[%clk 0:00:45]} 24. h3 {[%clk 0:00:56]}  Ne5 {[%clk 0:00:41]} 25. Qe4 {[%clk 0:00:32]}  Bf6 {[%clk 0:00:38]} 26. Be3 {[%clk 0:00:21]}  g6 {[%clk 0:00:38]} 27. Nf4 {[%clk 0:00:18]}  Qxf5 {[%clk 0:00:29]} 28. Qxf5 {[%clk 0:00:18]}  gxf5 {[%clk 0:00:30]} 29. Nd5 {[%clk 0:00:19]}  Bh4 {[%clk 0:00:25]} 30. Rxf5 {[%clk 0:00:18]}  c6 {[%clk 0:00:22]} 31. Nf6 {[%clk 0:00:18]}  Bxf6 {[%clk 0:00:22]} 32. Rxf6 {[%clk 0:00:19]}  c5 {[%clk 0:00:19]} 33. Raf1 {[%clk 0:00:17]}  Rg6 {[%clk 0:00:11]} 34. Rxg6 {[%clk 0:00:16]}  hxg6 {[%clk 0:00:11]} 35. Bf4 {[%clk 0:00:15]}  Kg7 {[%clk 0:00:11]} 36. Bxe5+ {[%clk 0:00:15]}  Rxe5 {[%clk 0:00:12]} 37. Kf2 {[%clk 0:00:15]}  Rd5 {[%clk 0:00:12]} 38. Re1 {[%clk 0:00:14]}  Rd2+ {[%clk 0:00:11]} 39. Re2 {[%clk 0:00:15]}  Rd1 {[%clk 0:00:12]} 40. Re7+ {[%clk 0:00:12]}  Kf6 {[%clk 0:00:12]} 41. Re2 {[%clk 0:00:12]}  Rd3 {[%clk 0:00:12]} 42. Re3 {[%clk 0:00:10]}  Rd2+ {[%clk 0:00:12]} 43. Re2 {[%clk 0:00:11]}  Rd3 {[%clk 0:00:13]} 44. g3 {[%clk 0:00:10]}  a5 {[%clk 0:00:12]} 45. h4 {[%clk 0:00:10]}  a4 {[%clk 0:00:12]} 46. a3 {[%clk 0:00:07]}  Kf5 {[%clk 0:00:12]} 47. Kg2 {[%clk 0:00:07]}  d5 {[%clk 0:00:11]} 48. Rf2+ {[%clk 0:00:07]}  Ke4 {[%clk 0:00:09]} 49. Rf4+ {[%clk 0:00:07]}  Ke5 {[%clk 0:00:09]} 50. Rf3 {[%clk 0:00:07]}  Rd2+ {[%clk 0:00:09]} 51. Rf2 {[%clk 0:00:07]}  Rd3 {[%clk 0:00:10]} 52. Kh3 {[%clk 0:00:07]}  Ke4 {[%clk 0:00:02]} 53. Kg4 {[%clk 0:00:07]}  Ke3 {[%clk 0:00:03]} 54. Rf3+ {[%clk 0:00:07]}  Ke2 {[%clk 0:00:04]} 55. Rxd3 {[%clk 0:00:07]}  Kxd3 {[%clk 0:00:05]} 56. Kg5 {[%clk 0:00:07]}  Kc2 {[%clk 0:00:03]} 57. Kxg6 {[%clk 0:00:08]}  d4 {[%clk 0:00:04]} 58. cxd4 {[%clk 0:00:08]}  cxd4 {[%clk 0:00:05]} 59. h5 {[%clk 0:00:05]}  d3 {[%clk 0:00:06]} 60. h6 {[%clk 0:00:06]}  d2 {[%clk 0:00:07]} 61. h7 {[%clk 0:00:06]}  d1=Q {[%clk 0:00:08]} 62. h8=Q {[%clk 0:00:06]}  Qg4+ {[%clk 0:00:08]} 63. Kf7 {[%clk 0:00:06]}  Qxg3 {[%clk 0:00:07]} 64. Qc8+ {[%clk 0:00:05]}  Kb3 {[%clk 0:00:06]} 65. Qb7+ {[%clk 0:00:04]}  Ka2 {[%clk 0:00:06]} 66. Qb4 {[%clk 0:00:05]}  Qb3+ {[%clk 0:00:05]} 67. Ke7 {[%clk 0:00:00]}  Qxb2 {[%clk 0:00:05]} 0-1


[Site "https://www.chess.com"]

[Event "Titled Tuesday Blitz July 11 Late 2023"]
[White "Gasparyan, David"]
[Black "Daianu, Cristian-Clement"]
[WhiteFideId "13311980"]
[BlackFideId "1208926"]
[WhiteElo "2505"]
[BlackElo "2344"]
[Result "0-1"]
[Round "4"]
[TimeControl "180+2"]
[Date "2023.07.11"]
[WhiteClock "0:01:48"]
[BlackClock "0:01:17"]
[Board "130"]

1. d4 {[%clk 0:03:00]}  f5 {[%clk 0:02:58]} 2. h4 {[%clk 0:02:58]}  Nf6 {[%clk 0:02:52]} 3. Nh3 {[%clk 0:02:58]}  e6 {[%clk 0:02:52]} 4. g3 {[%clk 0:02:58]}  d6 {[%clk 0:02:51]} 5. Bg2 {[%clk 0:02:58]}  Be7 {[%clk 0:02:52]} 6. c4 {[%clk 0:02:58]}  O-O {[%clk 0:02:52]} 7. O-O {[%clk 0:02:59]}  a5 {[%clk 0:02:52]} 8. Nc3 {[%clk 0:02:59]}  Bd7 {[%clk 0:02:51]} 9. Nf4 {[%clk 0:02:57]}  e5 {[%clk 0:02:47]} 10. dxe5 {[%clk 0:02:51]}  dxe5 {[%clk 0:02:48]} 11. Nd3 {[%clk 0:02:50]}  Ng4 {[%clk 0:02:38]} 12. Bxb7 {[%clk 0:02:47]}  Bc6 {[%clk 0:02:36]} 13. Bxc6 {[%clk 0:02:37]}  Nxc6 {[%clk 0:02:37]} 14. Nd5 {[%clk 0:02:31]}  Bxh4 {[%clk 0:02:31]} 15. Nc5 {[%clk 0:02:28]}  Nd4 {[%clk 0:02:06]} 16. e3 {[%clk 0:02:23]}  Nxf2 {[%clk 0:02:01]} 17. Rxf2 {[%clk 0:02:15]}  Bxg3 {[%clk 0:02:00]} 18. Rg2 {[%clk 0:02:16]}  f4 {[%clk 0:01:50]} 19. exd4 {[%clk 0:02:11]}  Qh4 {[%clk 0:01:49]} 20. Qf3 {[%clk 0:02:05]}  Rae8 {[%clk 0:01:39]} 21. Bd2 {[%clk 0:02:02]}  Kh8 {[%clk 0:01:32]} 22. Rf1 {[%clk 0:02:01]}  Rf5 {[%clk 0:01:30]} 23. dxe5 {[%clk 0:01:48]}  Rh5 {[%clk 0:01:18]} 24. Bxf4 {[%clk 0:01:48]}  Qh1# {[%clk 0:01:17]} 0-1


[Site "https://www.chess.com"]

[Event "Titled Tuesday Blitz July 11 Late 2023"]
[White "kripri"]
[Black "Sebag, Marie"]
[BlackFideId "617822"]
[WhiteElo "2342"]
[BlackElo "2504"]
[Result "0-1"]
[Round "4"]
[TimeControl "180+2"]
[Date "2023.07.11"]
[WhiteClock "0:00:13"]
[BlackClock "0:00:52"]
[Board "131"]

1. e4 {[%clk 0:02:49]}  c5 {[%clk 0:02:58]} 2. Nf3 {[%clk 0:02:47]}  Nc6 {[%clk 0:02:58]} 3. d4 {[%clk 0:02:46]}  cxd4 {[%clk 0:02:58]} 4. Nxd4 {[%clk 0:02:45]}  Nf6 {[%clk 0:02:59]} 5. Nc3 {[%clk 0:02:44]}  e5 {[%clk 0:02:59]} 6. Ndb5 {[%clk 0:02:43]}  d6 {[%clk 0:02:59]} 7. Bg5 {[%clk 0:02:43]}  a6 {[%clk 0:02:59]} 8. Na3 {[%clk 0:02:43]}  b5 {[%clk 0:02:59]} 9. Nd5 {[%clk 0:02:42]}  Be7 {[%clk 0:03:00]} 10. c4 {[%clk 0:02:42]}  Nxd5 {[%clk 0:02:52]} 11. Bxe7 {[%clk 0:02:30]}  Ndxe7 {[%clk 0:02:51]} 12. cxb5 {[%clk 0:02:27]}  Nd4 {[%clk 0:02:47]} 13. Qa4 {[%clk 0:02:25]}  O-O {[%clk 0:02:44]} 14. bxa6 {[%clk 0:02:17]}  Qb6 {[%clk 0:02:42]} 15. Nc4 {[%clk 0:02:12]}  Qxa6 {[%clk 0:02:41]} 16. Qxa6 {[%clk 0:02:10]}  Bxa6 {[%clk 0:02:40]} 17. Rc1 {[%clk 0:02:09]}  Rfc8 {[%clk 0:02:34]} 18. Bd3 {[%clk 0:02:08]}  d5 {[%clk 0:02:28]} 19. exd5 {[%clk 0:02:08]}  Nxd5 {[%clk 0:02:28]} 20. Kd2 {[%clk 0:02:06]}  Nf4 {[%clk 0:02:25]} 21. Be4 {[%clk 0:02:04]}  Rab8 {[%clk 0:02:21]} 22. Nxe5 {[%clk 0:01:53]}  Re8 {[%clk 0:01:35]} 23. Ke3 {[%clk 0:01:33]}  Nde2 {[%clk 0:00:57]} 24. Rc5 {[%clk 0:01:10]}  f6 {[%clk 0:00:57]} 25. Nc6 {[%clk 0:00:43]}  Nxg2+ {[%clk 0:00:55]} 26. Kf3 {[%clk 0:00:42]}  Nh4+ {[%clk 0:00:55]} 27. Ke3 {[%clk 0:00:37]}  Rxb2 {[%clk 0:00:53]} 28. Rd1 {[%clk 0:00:13]}  f5 {[%clk 0:00:52]} 0-1


[Site "https://www.chess.com"]

[Event "Titled Tuesday Blitz July 11 Late 2023"]
[White "Shapiro, Daniel"]
[Black "Peycheva, Gergana"]
[WhiteFideId "2001780"]
[BlackFideId "2916711"]
[WhiteElo "2342"]
[BlackElo "2502"]
[Result "0-1"]
[Round "4"]
[TimeControl "180+2"]
[Date "2023.07.11"]
[WhiteClock "0:00:00"]
[BlackClock "0:00:04"]
[Board "132"]

1. d4 {[%clk 0:03:00]}  d5 {[%clk 0:02:59]} 2. c4 {[%clk 0:02:54]}  dxc4 {[%clk 0:02:58]} 3. e4 {[%clk 0:02:54]}  e5 {[%clk 0:02:56]} 4. Nf3 {[%clk 0:02:52]}  exd4 {[%clk 0:02:56]} 5. Bxc4 {[%clk 0:02:45]}  Nc6 {[%clk 0:02:54]} 6. O-O {[%clk 0:02:35]}  Bc5 {[%clk 0:02:54]} 7. Qb3 {[%clk 0:02:25]}  Qf6 {[%clk 0:02:53]} 8. Bg5 {[%clk 0:02:14]}  Qg6 {[%clk 0:02:51]} 9. Nbd2 {[%clk 0:02:07]}  Nge7 {[%clk 0:02:32]} 10. Rac1 {[%clk 0:02:00]}  O-O {[%clk 0:01:16]} 11. Bxf7+ {[%clk 0:01:46]}  Qxf7 {[%clk 0:00:54]} 12. Qxf7+ {[%clk 0:01:36]}  Rxf7 {[%clk 0:00:50]} 13. Rxc5 {[%clk 0:01:36]}  Be6 {[%clk 0:00:40]} 14. a3 {[%clk 0:01:31]}  h6 {[%clk 0:00:33]} 15. Bh4 {[%clk 0:01:28]}  Ng6 {[%clk 0:00:28]} 16. Bg3 {[%clk 0:01:27]}  Rd8 {[%clk 0:00:17]} 17. b4 {[%clk 0:01:23]}  a6 {[%clk 0:00:11]} 18. Rfc1 {[%clk 0:01:22]}  Nf4 {[%clk 0:00:10]} 19. Kf1 {[%clk 0:00:50]}  Nd3 {[%clk 0:00:09]} 20. Rxc6 {[%clk 0:00:47]}  bxc6 {[%clk 0:00:09]} 21. Rxc6 {[%clk 0:00:47]}  Bd7 {[%clk 0:00:08]} 22. Rxc7 {[%clk 0:00:42]}  Bb5 {[%clk 0:00:08]} 23. Rxf7 {[%clk 0:00:39]}  Kxf7 {[%clk 0:00:08]} 24. Kg1 {[%clk 0:00:38]}  Rc8 {[%clk 0:00:06]} 25. h3 {[%clk 0:00:38]}  Rc2 {[%clk 0:00:04]} 26. Nb3 {[%clk 0:00:36]}  Bc4 {[%clk 0:00:03]} 27. Nbxd4 {[%clk 0:00:34]}  Ra2 {[%clk 0:00:03]} 28. Nf5 {[%clk 0:00:28]}  Rxa3 {[%clk 0:00:04]} 29. Nd6+ {[%clk 0:00:28]}  Ke7 {[%clk 0:00:04]} 30. Nxc4 {[%clk 0:00:29]}  Ra1+ {[%clk 0:00:04]} 31. Kh2 {[%clk 0:00:28]}  Rb1 {[%clk 0:00:05]} 32. Nd4 {[%clk 0:00:27]}  Nxb4 {[%clk 0:00:05]} 33. Be5 {[%clk 0:00:20]}  Nd3 {[%clk 0:00:04]} 34. Bxg7 {[%clk 0:00:17]}  Nxf2 {[%clk 0:00:05]} 35. Bxh6 {[%clk 0:00:15]}  Nxe4 {[%clk 0:00:05]} 36. Be3 {[%clk 0:00:11]}  Ke8 {[%clk 0:00:05]} 37. h4 {[%clk 0:00:09]}  Rb4 {[%clk 0:00:05]} 38. Ne5 {[%clk 0:00:08]}  a5 {[%clk 0:00:05]} 39. Nec6 {[%clk 0:00:05]}  Ra4 {[%clk 0:00:05]} 40. Nb5 {[%clk 0:00:04]}  Nf6 {[%clk 0:00:05]} 41. Kh3 {[%clk 0:00:02]}  Ng4 {[%clk 0:00:03]} 42. Kg3 {[%clk 0:00:01]}  Nxe3 {[%clk 0:00:03]} 43. Kf3 {[%clk 0:00:01]}  Nd5 {[%clk 0:00:04]} 44. g4 {[%clk 0:00:00]}  Rf4+ {[%clk 0:00:04]} 0-1


[Site "https://www.chess.com"]

[Event "Titled Tuesday Blitz July 11 Late 2023"]
[White "Tsyhanchuk, Stanislav"]
[Black "Forgacs, Attila Jr."]
[WhiteFideId "13505130"]
[BlackFideId "773654"]
[WhiteElo "2321"]
[BlackElo "2500"]
[Result "0-1"]
[Round "4"]
[TimeControl "180+2"]
[Date "2023.07.11"]
[WhiteClock "0:00:00"]
[BlackClock "0:00:30"]
[Board "133"]

1. e4 {[%clk 0:03:00]}  e5 {[%clk 0:02:59]} 2. Nf3 {[%clk 0:03:00]}  Nc6 {[%clk 0:03:00]} 3. Bc4 {[%clk 0:03:00]}  Nf6 {[%clk 0:03:00]} 4. d3 {[%clk 0:03:00]}  h6 {[%clk 0:02:59]} 5. O-O {[%clk 0:03:00]}  d6 {[%clk 0:03:00]} 6. a3 {[%clk 0:02:59]}  g5 {[%clk 0:03:01]} 7. Nc3 {[%clk 0:02:47]}  Bg7 {[%clk 0:03:01]} 8. d4 {[%clk 0:02:44]}  Bg4 {[%clk 0:02:35]} 9. Be3 {[%clk 0:02:22]}  Bxf3 {[%clk 0:02:26]} 10. gxf3 {[%clk 0:02:12]}  O-O {[%clk 0:02:25]} 11. d5 {[%clk 0:02:05]}  Ne7 {[%clk 0:02:25]} 12. Kh1 {[%clk 0:02:03]}  Qd7 {[%clk 0:02:25]} 13. Rg1 {[%clk 0:02:01]}  Ng6 {[%clk 0:02:23]} 14. b4 {[%clk 0:01:55]}  Nh5 {[%clk 0:02:16]} 15. Ne2 {[%clk 0:01:51]}  Qh3 {[%clk 0:02:13]} 16. Ng3 {[%clk 0:01:49]}  Nhf4 {[%clk 0:02:07]} 17. Nf5 {[%clk 0:01:43]}  Nh4 {[%clk 0:01:58]} 18. Bxf4 {[%clk 0:01:35]}  exf4 {[%clk 0:01:47]} 19. Nxh4 {[%clk 0:01:26]}  Qxh4 {[%clk 0:01:46]} 20. Rb1 {[%clk 0:01:16]}  Qxf2 {[%clk 0:01:43]} 21. Qe2 {[%clk 0:01:12]}  Qxe2 {[%clk 0:01:37]} 22. Bxe2 {[%clk 0:01:13]}  Bd4 {[%clk 0:01:24]} 23. Rg2 {[%clk 0:01:08]}  Kg7 {[%clk 0:01:24]} 24. c4 {[%clk 0:01:03]}  Kf6 {[%clk 0:01:19]} 25. Bd3 {[%clk 0:00:50]}  b6 {[%clk 0:01:18]} 26. Rc2 {[%clk 0:00:49]}  a5 {[%clk 0:01:15]} 27. b5 {[%clk 0:00:39]}  Rg8 {[%clk 0:01:08]} 28. h3 {[%clk 0:00:32]}  Ke5 {[%clk 0:01:06]} 29. a4 {[%clk 0:00:24]}  Rg7 {[%clk 0:01:06]} 30. Rg2 {[%clk 0:00:22]}  h5 {[%clk 0:01:03]} 31. Be2 {[%clk 0:00:19]}  Rh8 {[%clk 0:00:56]} 32. h4 {[%clk 0:00:18]}  g4 {[%clk 0:00:48]} 33. Kh2 {[%clk 0:00:07]}  Rhg8 {[%clk 0:00:44]} 34. fxg4 {[%clk 0:00:05]}  hxg4 {[%clk 0:00:44]} 35. Bd1 {[%clk 0:00:03]}  f3 {[%clk 0:00:42]} 36. Rc2 {[%clk 0:00:02]}  g3+ {[%clk 0:00:38]} 37. Kh3 {[%clk 0:00:00]}  g2 {[%clk 0:00:30]} 0-1


[Site "https://www.chess.com"]

[Event "Titled Tuesday Blitz July 11 Late 2023"]
[White "Antonio, Jorge Carlos"]
[Black "Merino Garcia, Rafael II"]
[WhiteFideId "113190"]
[BlackFideId "2209128"]
[WhiteElo "2293"]
[BlackElo "2493"]
[Result "0-1"]
[Round "4"]
[TimeControl "180+2"]
[Date "2023.07.11"]
[WhiteClock "0:00:35"]
[BlackClock "0:00:28"]
[Board "135"]

1. d4 {[%clk 0:03:00]}  Nf6 {[%clk 0:02:58]} 2. Nf3 {[%clk 0:02:58]}  e6 {[%clk 0:02:58]} 3. Bg5 {[%clk 0:02:56]}  h6 {[%clk 0:02:55]} 4. Bh4 {[%clk 0:02:55]}  b6 {[%clk 0:02:54]} 5. e3 {[%clk 0:02:55]}  Bb7 {[%clk 0:02:54]} 6. Be2 {[%clk 0:02:51]}  d6 {[%clk 0:02:42]} 7. O-O {[%clk 0:02:49]}  Nbd7 {[%clk 0:02:43]} 8. c4 {[%clk 0:02:50]}  g5 {[%clk 0:02:41]} 9. Bg3 {[%clk 0:02:49]}  Ne4 {[%clk 0:02:41]} 10. Nbd2 {[%clk 0:02:47]}  Nxg3 {[%clk 0:02:35]} 11. fxg3 {[%clk 0:02:44]}  Bg7 {[%clk 0:02:31]} 12. Bd3 {[%clk 0:02:43]}  Nf6 {[%clk 0:02:25]} 13. Qe2 {[%clk 0:02:42]}  c5 {[%clk 0:02:20]} 14. Rae1 {[%clk 0:02:38]}  Qe7 {[%clk 0:01:57]} 15. b3 {[%clk 0:02:37]}  Nd7 {[%clk 0:01:48]} 16. h3 {[%clk 0:02:36]}  f5 {[%clk 0:01:37]} 17. e4 {[%clk 0:02:29]}  f4 {[%clk 0:01:30]} 18. gxf4 {[%clk 0:02:27]}  gxf4 {[%clk 0:01:29]} 19. d5 {[%clk 0:02:25]}  O-O-O {[%clk 0:01:15]} 20. dxe6 {[%clk 0:02:19]}  Qxe6 {[%clk 0:01:14]} 21. a4 {[%clk 0:02:08]}  Rhg8 {[%clk 0:01:13]} 22. a5 {[%clk 0:02:06]}  Bf6 {[%clk 0:01:08]} 23. Kh1 {[%clk 0:02:03]}  Rg3 {[%clk 0:01:06]} 24. Nh2 {[%clk 0:01:48]}  Be5 {[%clk 0:01:03]} 25. Ndf3 {[%clk 0:01:46]}  Rdg8 {[%clk 0:01:02]} 26. Rf2 {[%clk 0:01:42]}  Qg6 {[%clk 0:00:53]} 27. axb6 {[%clk 0:01:40]}  axb6 {[%clk 0:00:53]} 28. Ra1 {[%clk 0:01:38]}  Bxa1 {[%clk 0:00:48]} 29. e5 {[%clk 0:01:32]}  Qg7 {[%clk 0:00:41]} 30. e6 {[%clk 0:01:22]}  Ne5 {[%clk 0:00:42]} 31. Nxe5 {[%clk 0:01:21]}  Bxe5 {[%clk 0:00:40]} 32. Be4 {[%clk 0:01:18]}  Bxe4 {[%clk 0:00:40]} 33. Qxe4 {[%clk 0:01:18]}  Qb7 {[%clk 0:00:40]} 34. Qxb7+ {[%clk 0:01:09]}  Kxb7 {[%clk 0:00:40]} 35. Ng4 {[%clk 0:01:05]}  h5 {[%clk 0:00:37]} 36. Nh6 {[%clk 0:01:04]}  Re8 {[%clk 0:00:35]} 37. Nf5 {[%clk 0:01:03]}  Rxb3 {[%clk 0:00:32]} 38. e7 {[%clk 0:01:01]}  Rb1+ {[%clk 0:00:31]} 39. Kh2 {[%clk 0:00:59]}  h4 {[%clk 0:00:29]} 40. Rd2 {[%clk 0:00:49]}  Kc6 {[%clk 0:00:29]} 41. Ra2 {[%clk 0:00:47]}  f3+ {[%clk 0:00:29]} 42. g3 {[%clk 0:00:45]}  hxg3+ {[%clk 0:00:29]} 43. Nxg3 {[%clk 0:00:45]}  Rxe7 {[%clk 0:00:29]} 44. h4 {[%clk 0:00:35]}  Rg7 {[%clk 0:00:28]} 0-1


[Site "https://www.chess.com"]